[Event "Titled Tuesday Blitz August 1 Early 2023"]
[White "EsmeraldasAnderson03"]
[Black "Havlik, Jan"]
[BlackFideId "319783"]
[WhiteElo "2435"]
[BlackElo "2613"]
[Result "1-0"]
[Round "6"]
[TimeControl "180+1"]
[Date "2023.08.01"]
[WhiteClock "0:02:30"]
[BlackClock "0:02:27"]
[Board "96"]

1. d4 {[%clk 0:03:00]}  Nf6 {[%clk 0:02:59]} 2. Nf3 {[%clk 0:03:01]}  g6 {[%clk 0:03:00]} 3. Bf4 {[%clk 0:03:01]}  Bg7 {[%clk 0:03:00]} 4. h3 {[%clk 0:03:02]}  d6 {[%clk 0:02:59]} 5. e3 {[%clk 0:03:02]}  O-O {[%clk 0:03:00]} 6. Bh2 {[%clk 0:03:03]}  c5 {[%clk 0:03:00]} 7. Be2 {[%clk 0:03:03]}  cxd4 {[%clk 0:03:00]} 8. exd4 {[%clk 0:03:04]}  Nc6 {[%clk 0:03:00]} 9. c3 {[%clk 0:03:05]}  Re8 {[%clk 0:03:00]} 10. O-O {[%clk 0:03:04]}  Bd7 {[%clk 0:02:58]} 11. Nbd2 {[%clk 0:03:04]}  e5 {[%clk 0:02:58]} 12. Nc4 {[%clk 0:03:04]}  exd4 {[%clk 0:02:49]} 13. Nxd6 {[%clk 0:03:03]}  Re6 {[%clk 0:02:48]} 14. cxd4 {[%clk 0:02:57]}  Qb6 {[%clk 0:02:37]} 15. Bc4 {[%clk 0:02:45]}  Rxd6 {[%clk 0:02:33]} 16. Bxd6 {[%clk 0:02:43]}  Qxb2 {[%clk 0:02:34]} 17. Rb1 {[%clk 0:02:40]}  Qc3 {[%clk 0:02:34]} 18. Qb3 {[%clk 0:02:32]}  Ne4 {[%clk 0:02:27]} 19. Bxf7+ {[%clk 0:02:30]} 1-0


[Site "https://www.chess.com"]

[Event "Titled Tuesday Blitz August 1 Early 2023"]
[White "Ozates, Tuna"]
[Black "WindWhistler11"]
[WhiteFideId "6354521"]
[WhiteElo "2613"]
[BlackElo "2431"]
[Result "1-0"]
[Round "6"]
[TimeControl "180+1"]
[Date "2023.08.01"]
[WhiteClock "0:00:50"]
[BlackClock "0:00:15"]
[Board "97"]

1. e4 {[%clk 0:03:00]}  e6 {[%clk 0:03:00]} 2. d4 {[%clk 0:02:57]}  d5 {[%clk 0:03:00]} 3. Nc3 {[%clk 0:02:56]}  Bb4 {[%clk 0:03:00]} 4. exd5 {[%clk 0:02:51]}  exd5 {[%clk 0:02:59]} 5. Bd3 {[%clk 0:02:51]}  Ne7 {[%clk 0:02:59]} 6. Ne2 {[%clk 0:02:51]}  Nbc6 {[%clk 0:02:59]} 7. O-O {[%clk 0:02:51]}  Bf5 {[%clk 0:02:57]} 8. a3 {[%clk 0:02:49]}  Ba5 {[%clk 0:02:57]} 9. Bg5 {[%clk 0:02:44]}  f6 {[%clk 0:02:57]} 10. Bh4 {[%clk 0:02:44]}  Qd7 {[%clk 0:02:56]} 11. Bg3 {[%clk 0:02:36]}  Bb6 {[%clk 0:02:45]} 12. Na4 {[%clk 0:02:17]}  Nxd4 {[%clk 0:02:24]} 13. Nxd4 {[%clk 0:02:04]}  Bxd4 {[%clk 0:02:19]} 14. Bxf5 {[%clk 0:02:02]}  Nxf5 {[%clk 0:02:18]} 15. Re1+ {[%clk 0:02:03]}  Kf7 {[%clk 0:02:18]} 16. c3 {[%clk 0:01:59]}  Nxg3 {[%clk 0:02:13]} 17. Qxd4 {[%clk 0:01:49]}  Nf5 {[%clk 0:02:10]} 18. Qd3 {[%clk 0:01:41]}  b6 {[%clk 0:01:54]} 19. c4 {[%clk 0:01:39]}  Rad8 {[%clk 0:01:44]} 20. Nc3 {[%clk 0:01:37]}  d4 {[%clk 0:01:38]} 21. Nd5 {[%clk 0:01:29]}  c6 {[%clk 0:01:38]} 22. Nf4 {[%clk 0:01:29]}  c5 {[%clk 0:01:24]} 23. Ne6 {[%clk 0:01:28]}  Rde8 {[%clk 0:01:17]} 24. Qxf5 {[%clk 0:01:27]}  Rxe6 {[%clk 0:01:17]} 25. Rxe6 {[%clk 0:01:20]}  Qxe6 {[%clk 0:01:17]} 26. Qf3 {[%clk 0:01:19]}  Re8 {[%clk 0:01:13]} 27. h4 {[%clk 0:01:19]}  Qxc4 {[%clk 0:01:11]} 28. Qh5+ {[%clk 0:01:19]}  Kf8 {[%clk 0:01:08]} 29. Qxh7 {[%clk 0:01:19]}  d3 {[%clk 0:00:54]} 30. Rd1 {[%clk 0:01:09]}  d2 {[%clk 0:00:53]} 31. Qh8+ {[%clk 0:01:05]}  Kf7 {[%clk 0:00:53]} 32. Qh5+ {[%clk 0:01:05]}  Kf8 {[%clk 0:00:53]} 33. Qh8+ {[%clk 0:01:06]}  Kf7 {[%clk 0:00:28]} 34. Qh5+ {[%clk 0:01:05]}  g6 {[%clk 0:00:25]} 35. Qh7+ {[%clk 0:01:00]}  Kf8 {[%clk 0:00:21]} 36. Qh6+ {[%clk 0:01:00]}  Kf7 {[%clk 0:00:19]} 37. Rxd2 {[%clk 0:01:01]}  Qc1+ {[%clk 0:00:18]} 38. Kh2 {[%clk 0:01:00]}  Re1 {[%clk 0:00:16]} 39. Qh7+ {[%clk 0:00:56]}  Ke6 {[%clk 0:00:16]} 40. Qd7+ {[%clk 0:00:56]}  Ke5 {[%clk 0:00:16]} 41. Qd5+ {[%clk 0:00:55]}  Kf4 {[%clk 0:00:15]} 42. g3+ {[%clk 0:00:49]}  Kg4 {[%clk 0:00:15]} 43. f3# {[%clk 0:00:50]} 1-0


[Site "https://www.chess.com"]

[Event "Titled Tuesday Blitz August 1 Early 2023"]
[White "Jain Kashish Manoj"]
[Black "Bazilius, Augustinas"]
[WhiteFideId "35081098"]
[BlackFideId "12832251"]
[WhiteElo "2607"]
[BlackElo "2421"]
[Result "1-0"]
[Round "6"]
[TimeControl "180+1"]
[Date "2023.08.01"]
[WhiteClock "0:02:10"]
[BlackClock "0:01:30"]
[Board "98"]

1. e4 {[%clk 0:03:00]}  c5 {[%clk 0:02:49]} 2. Nf3 {[%clk 0:03:00]}  a6 {[%clk 0:02:41]} 3. c4 {[%clk 0:02:55]}  e6 {[%clk 0:02:39]} 4. Nc3 {[%clk 0:02:51]}  Qc7 {[%clk 0:02:36]} 5. Be2 {[%clk 0:02:46]}  Nf6 {[%clk 0:02:30]} 6. O-O {[%clk 0:02:44]}  Be7 {[%clk 0:02:28]} 7. b3 {[%clk 0:02:44]}  O-O {[%clk 0:02:25]} 8. Bb2 {[%clk 0:02:44]}  d6 {[%clk 0:02:25]} 9. Re1 {[%clk 0:02:33]}  Nc6 {[%clk 0:02:18]} 10. d4 {[%clk 0:02:32]}  cxd4 {[%clk 0:02:19]} 11. Nxd4 {[%clk 0:02:33]}  b6 {[%clk 0:02:20]} 12. Nxc6 {[%clk 0:02:20]}  Qxc6 {[%clk 0:02:21]} 13. e5 {[%clk 0:02:17]}  dxe5 {[%clk 0:01:55]} 14. Bf3 {[%clk 0:02:17]}  e4 {[%clk 0:01:56]} 15. Nxe4 {[%clk 0:02:17]}  Nd5 {[%clk 0:01:32]} 16. cxd5 {[%clk 0:02:16]}  exd5 {[%clk 0:01:33]} 17. Nc3 {[%clk 0:02:13]}  Be6 {[%clk 0:01:30]} 18. Nxd5 {[%clk 0:02:10]} 1-0


[Site "https://www.chess.com"]

[Event "Titled Tuesday Blitz August 1 Early 2023"]
[White "Omorjan, Dejan"]
[Black "Begunov, Konstantin"]
[WhiteFideId "955345"]
[BlackFideId "4118510"]
[WhiteElo "2600"]
[BlackElo "2406"]
[Result "0-1"]
[Round "6"]
[TimeControl "180+1"]
[Date "2023.08.01"]
[WhiteClock "0:00:00"]
[BlackClock "0:00:11"]
[Board "99"]

1. d4 {[%clk 0:03:00]}  d5 {[%clk 0:03:00]} 2. Nf3 {[%clk 0:03:00]}  c6 {[%clk 0:03:00]} 3. c4 {[%clk 0:02:57]}  Nf6 {[%clk 0:03:00]} 4. Nc3 {[%clk 0:02:57]}  dxc4 {[%clk 0:03:00]} 5. a4 {[%clk 0:02:57]}  Bg4 {[%clk 0:03:00]} 6. Ne5 {[%clk 0:02:53]}  Bh5 {[%clk 0:03:00]} 7. f3 {[%clk 0:02:43]}  Nfd7 {[%clk 0:02:59]} 8. Nxc4 {[%clk 0:02:41]}  e5 {[%clk 0:02:58]} 9. Nxe5 {[%clk 0:02:34]}  Nxe5 {[%clk 0:02:58]} 10. dxe5 {[%clk 0:02:35]}  Nd7 {[%clk 0:02:58]} 11. e6 {[%clk 0:02:30]}  fxe6 {[%clk 0:02:57]} 12. e4 {[%clk 0:02:29]}  Bb4 {[%clk 0:02:44]} 13. Bc4 {[%clk 0:02:15]}  Qh4+ {[%clk 0:02:40]} 14. Kf1 {[%clk 0:02:02]}  Ne5 {[%clk 0:02:02]} 15. Be2 {[%clk 0:01:45]}  O-O {[%clk 0:01:49]} 16. Be3 {[%clk 0:01:40]}  Bxc3 {[%clk 0:01:19]} 17. bxc3 {[%clk 0:01:39]}  Qxe4 {[%clk 0:01:17]} 18. Bf2 {[%clk 0:01:20]}  Qd5 {[%clk 0:01:12]} 19. Bg3 {[%clk 0:01:00]}  Ng4 {[%clk 0:00:59]} 20. Qc1 {[%clk 0:00:49]}  Qc5 {[%clk 0:00:54]} 21. Ke1 {[%clk 0:00:36]}  Ne3 {[%clk 0:00:25]} 22. Bf1 {[%clk 0:00:02]}  Bg6 {[%clk 0:00:15]} 23. Bf2 {[%clk 0:00:02]}  Nc2+ {[%clk 0:00:13]} 24. Qxc2 {[%clk 0:00:02]}  Qe5+ {[%clk 0:00:14]} 25. Qe2 {[%clk 0:00:02]}  Qxc3+ {[%clk 0:00:14]} 26. Qd2 {[%clk 0:00:02]}  Qxa1+ {[%clk 0:00:13]} 27. Ke2 {[%clk 0:00:03]}  Rad8 {[%clk 0:00:12]} 28. Qb4 {[%clk 0:00:00]}  Qd1+ {[%clk 0:00:11]} 0-1


[Site "https://www.chess.com"]

[Event "Titled Tuesday Blitz August 1 Early 2023"]
[White "Spichkin, Alexander"]
[Black "vishwa_vijeta"]
[WhiteFideId "4144074"]
[WhiteElo "2399"]
[BlackElo "2599"]
[Result "0-1"]
[Round "6"]
[TimeControl "180+1"]
[Date "2023.08.01"]
[WhiteClock "0:01:15"]
[BlackClock "0:00:49"]
[Board "100"]

1. f4 {[%clk 0:03:00]}  c5 {[%clk 0:02:57]} 2. Nf3 {[%clk 0:03:00]}  Nc6 {[%clk 0:02:55]} 3. d3 {[%clk 0:02:59]}  d5 {[%clk 0:02:55]} 4. e3 {[%clk 0:02:59]}  g6 {[%clk 0:02:55]} 5. Be2 {[%clk 0:03:00]}  Bg7 {[%clk 0:02:56]} 6. O-O {[%clk 0:03:00]}  e5 {[%clk 0:02:55]} 7. fxe5 {[%clk 0:03:00]}  Nxe5 {[%clk 0:02:56]} 8. d4 {[%clk 0:02:58]}  Nxf3+ {[%clk 0:02:56]} 9. Bxf3 {[%clk 0:02:58]}  cxd4 {[%clk 0:02:56]} 10. exd4 {[%clk 0:02:59]}  Ne7 {[%clk 0:02:57]} 11. Nc3 {[%clk 0:02:51]}  O-O {[%clk 0:02:56]} 12. Bg5 {[%clk 0:02:51]}  Be6 {[%clk 0:02:53]} 13. Re1 {[%clk 0:02:42]}  Re8 {[%clk 0:02:44]} 14. Kh1 {[%clk 0:02:23]}  Qd7 {[%clk 0:02:28]} 15. a4 {[%clk 0:02:09]}  Nc6 {[%clk 0:02:23]} 16. Be3 {[%clk 0:02:07]}  Rac8 {[%clk 0:02:04]} 17. Qd2 {[%clk 0:02:07]}  Ne7 {[%clk 0:01:40]} 18. Bh6 {[%clk 0:02:03]}  Bxh6 {[%clk 0:01:35]} 19. Qxh6 {[%clk 0:02:02]}  Nf5 {[%clk 0:01:35]} 20. Qd2 {[%clk 0:02:01]}  Rc4 {[%clk 0:01:32]} 21. Nb5 {[%clk 0:01:58]}  a6 {[%clk 0:01:22]} 22. b3 {[%clk 0:01:58]}  Rc6 {[%clk 0:01:13]} 23. Na3 {[%clk 0:01:55]}  Nh4 {[%clk 0:01:01]} 24. Qf4 {[%clk 0:01:54]}  Nxf3 {[%clk 0:00:58]} 25. Qxf3 {[%clk 0:01:54]}  Rec8 {[%clk 0:00:59]} 26. Re5 {[%clk 0:01:44]}  Rc3 {[%clk 0:00:56]} 27. Re3 {[%clk 0:01:42]}  Qc7 {[%clk 0:00:52]} 28. Rxc3 {[%clk 0:01:35]}  Qxc3 {[%clk 0:00:53]} 29. Qxc3 {[%clk 0:01:35]}  Rxc3 {[%clk 0:00:54]} 30. Rd1 {[%clk 0:01:33]}  Bf5 {[%clk 0:00:53]} 31. Rd2 {[%clk 0:01:33]}  Re3 {[%clk 0:00:43]} 32. Kg1 {[%clk 0:01:33]}  Re1+ {[%clk 0:00:43]} 33. Kf2 {[%clk 0:01:31]}  Ra1 {[%clk 0:00:44]} 34. Nb5 {[%clk 0:01:28]}  axb5 {[%clk 0:00:44]} 35. axb5 {[%clk 0:01:28]}  Ra2 {[%clk 0:00:44]} 36. Ke3 {[%clk 0:01:21]}  Rxc2 {[%clk 0:00:43]} 37. Rxc2 {[%clk 0:01:22]}  Bxc2 {[%clk 0:00:44]} 38. b4 {[%clk 0:01:23]}  Ba4 {[%clk 0:00:44]} 39. b6 {[%clk 0:01:22]}  Kf8 {[%clk 0:00:44]} 40. Kf4 {[%clk 0:01:23]}  f6 {[%clk 0:00:44]} 41. g4 {[%clk 0:01:23]}  g5+ {[%clk 0:00:45]} 42. Kg3 {[%clk 0:01:17]}  Ke7 {[%clk 0:00:45]} 43. h4 {[%clk 0:01:17]}  h6 {[%clk 0:00:46]} 44. hxg5 {[%clk 0:01:18]}  hxg5 {[%clk 0:00:47]} 45. Kf3 {[%clk 0:01:17]}  Bb5 {[%clk 0:00:48]} 46. Ke3 {[%clk 0:01:15]}  Kd6 {[%clk 0:00:49]} 0-1


[Site "https://www.chess.com"]

[Event "Titled Tuesday Blitz August 1 Early 2023"]
[White "Han, Yichen"]
[Black "Karamsetty, Jeevan"]
[WhiteFideId "1054430"]
[BlackFideId "2025337"]
[WhiteElo "2395"]
[BlackElo "2591"]
[Result "1/2-1/2"]
[Round "6"]
[TimeControl "180+1"]
[Date "2023.08.01"]
[WhiteClock "0:00:03"]
[BlackClock "0:00:05"]
[Board "101"]

1. d4 {[%clk 0:03:00]}  g6 {[%clk 0:02:59]} 2. e4 {[%clk 0:02:58]}  d6 {[%clk 0:03:00]} 3. Nc3 {[%clk 0:02:57]}  Bg7 {[%clk 0:02:59]} 4. Be3 {[%clk 0:02:57]}  Nf6 {[%clk 0:03:00]} 5. Nf3 {[%clk 0:02:57]}  O-O {[%clk 0:03:00]} 6. Qd2 {[%clk 0:02:57]}  a6 {[%clk 0:03:01]} 7. Bh6 {[%clk 0:02:56]}  b5 {[%clk 0:03:01]} 8. a3 {[%clk 0:02:57]}  Bb7 {[%clk 0:02:57]} 9. Bd3 {[%clk 0:02:56]}  c5 {[%clk 0:02:54]} 10. dxc5 {[%clk 0:02:48]}  dxc5 {[%clk 0:02:52]} 11. e5 {[%clk 0:02:41]}  Nd5 {[%clk 0:02:47]} 12. Bxg7 {[%clk 0:02:24]}  Kxg7 {[%clk 0:02:46]} 13. h4 {[%clk 0:02:24]}  h5 {[%clk 0:02:42]} 14. O-O-O {[%clk 0:02:16]}  b4 {[%clk 0:02:18]} 15. axb4 {[%clk 0:02:10]}  Nxb4 {[%clk 0:02:12]} 16. Qe3 {[%clk 0:01:59]}  Qa5 {[%clk 0:02:05]} 17. e6 {[%clk 0:01:45]}  f6 {[%clk 0:01:41]} 18. Kb1 {[%clk 0:01:35]}  Nd5 {[%clk 0:01:05]} 19. Nxd5 {[%clk 0:01:27]}  Bxd5 {[%clk 0:01:06]} 20. c4 {[%clk 0:01:21]}  Bc6 {[%clk 0:00:54]} 21. Be4 {[%clk 0:01:18]}  Qb6 {[%clk 0:00:39]} 22. Rhe1 {[%clk 0:01:05]}  Ra7 {[%clk 0:00:37]} 23. Qc3 {[%clk 0:01:01]}  Rb7 {[%clk 0:00:30]} 24. Ng5 {[%clk 0:00:59]}  Bxe4+ {[%clk 0:00:26]} 25. Nxe4 {[%clk 0:00:56]}  Nc6 {[%clk 0:00:23]} 26. Rd7 {[%clk 0:00:50]}  Nd4 {[%clk 0:00:23]} 27. Rxb7 {[%clk 0:00:48]}  Qxb7 {[%clk 0:00:24]} 28. Nxc5 {[%clk 0:00:48]}  Qb6 {[%clk 0:00:09]} 29. Qxd4 {[%clk 0:00:48]}  Rc8 {[%clk 0:00:09]} 30. Nb3 {[%clk 0:00:27]}  Qxb3 {[%clk 0:00:08]} 31. Qd7 {[%clk 0:00:27]}  Qxc4 {[%clk 0:00:05]} 32. Qxe7+ {[%clk 0:00:26]}  Kh6 {[%clk 0:00:06]} 33. Qa3 {[%clk 0:00:18]}  Qc2+ {[%clk 0:00:06]} 34. Ka1 {[%clk 0:00:18]}  Rc4 {[%clk 0:00:06]} 35. Qf8+ {[%clk 0:00:07]}  Kh7 {[%clk 0:00:05]} 36. Qf7+ {[%clk 0:00:06]}  Kh6 {[%clk 0:00:05]} 37. Qf8+ {[%clk 0:00:07]}  Kh7 {[%clk 0:00:06]} 38. Qf7+ {[%clk 0:00:02]}  Kh6 {[%clk 0:00:05]} 39. Qf8+ {[%clk 0:00:03]} 1/2-1/2


[Site "https://www.chess.com"]

[Event "Titled Tuesday Blitz August 1 Early 2023"]
[White "Perez, Maximiliano"]
[Black "Topalov, Aleksandar"]
[WhiteFideId "117234"]
[BlackFideId "925659"]
[WhiteElo "2541"]
[BlackElo "2371"]
[Result "1-0"]
[Round "6"]
[TimeControl "180+1"]
[Date "2023.08.01"]
[WhiteClock "0:00:13"]
[BlackClock "0:00:32"]
[Board "104"]

1. e4 {[%clk 0:03:00]}  e6 {[%clk 0:02:59]} 2. d3 {[%clk 0:02:52]}  c5 {[%clk 0:02:57]} 3. g3 {[%clk 0:02:46]}  Nc6 {[%clk 0:02:57]} 4. Bg2 {[%clk 0:02:45]}  Be7 {[%clk 0:02:57]} 5. f4 {[%clk 0:02:42]}  d5 {[%clk 0:02:56]} 6. e5 {[%clk 0:02:41]}  Nh6 {[%clk 0:02:56]} 7. Nf3 {[%clk 0:02:41]}  Nf5 {[%clk 0:02:56]} 8. O-O {[%clk 0:02:40]}  h5 {[%clk 0:02:56]} 9. c3 {[%clk 0:02:10]}  g6 {[%clk 0:02:51]} 10. Na3 {[%clk 0:02:10]}  Kf8 {[%clk 0:02:51]} 11. Nc2 {[%clk 0:02:10]}  b5 {[%clk 0:02:51]} 12. Ne3 {[%clk 0:02:09]}  Nxe3 {[%clk 0:02:46]} 13. Bxe3 {[%clk 0:02:10]}  a5 {[%clk 0:02:45]} 14. d4 {[%clk 0:02:10]}  cxd4 {[%clk 0:02:41]} 15. cxd4 {[%clk 0:02:10]}  Ba6 {[%clk 0:02:36]} 16. h3 {[%clk 0:02:07]}  b4 {[%clk 0:02:22]} 17. Rf2 {[%clk 0:02:07]}  Rc8 {[%clk 0:01:45]} 18. g4 {[%clk 0:02:06]}  hxg4 {[%clk 0:01:44]} 19. hxg4 {[%clk 0:02:06]}  Bh4 {[%clk 0:01:41]} 20. Rc2 {[%clk 0:02:02]}  Ne7 {[%clk 0:01:33]} 21. Rxc8 {[%clk 0:01:57]}  Qxc8 {[%clk 0:01:32]} 22. Rc1 {[%clk 0:01:55]}  Qb7 {[%clk 0:01:29]} 23. Nxh4 {[%clk 0:01:43]}  Rxh4 {[%clk 0:01:28]} 24. Kf2 {[%clk 0:01:42]}  Kg7 {[%clk 0:01:20]} 25. Kg3 {[%clk 0:01:42]}  Rh8 {[%clk 0:01:19]} 26. Qa4 {[%clk 0:01:29]}  Bb5 {[%clk 0:00:54]} 27. Qxa5 {[%clk 0:01:23]}  Nc6 {[%clk 0:00:54]} 28. Rxc6 {[%clk 0:01:11]}  Bxc6 {[%clk 0:00:54]} 29. Qc5 {[%clk 0:00:57]}  Ra8 {[%clk 0:00:47]} 30. f5 {[%clk 0:00:55]}  exf5 {[%clk 0:00:46]} 31. gxf5 {[%clk 0:00:56]}  gxf5 {[%clk 0:00:44]} 32. Qd6 {[%clk 0:00:52]}  Qd7 {[%clk 0:00:40]} 33. Qf6+ {[%clk 0:00:37]}  Kf8 {[%clk 0:00:40]} 34. Qh8+ {[%clk 0:00:20]}  Ke7 {[%clk 0:00:39]} 35. Bg5+ {[%clk 0:00:20]}  f6 {[%clk 0:00:37]} 36. Qxf6+ {[%clk 0:00:17]}  Ke8 {[%clk 0:00:36]} 37. Bf3 {[%clk 0:00:14]}  Qf7 {[%clk 0:00:32]} 38. Qxc6+ {[%clk 0:00:13]} 1-0


[Site "https://www.chess.com"]

[Event "Titled Tuesday Blitz August 1 Early 2023"]
[White "Klukin, Kirill"]
[Black "Garcia Almaguer, Juan Manuel"]
[WhiteFideId "24199273"]
[BlackFideId "5110491"]
[WhiteElo "2697"]
[BlackElo "2467"]
[Result "0-1"]
[Round "6"]
[TimeControl "180+1"]
[Date "2023.08.01"]
[WhiteClock "0:00:00"]
[BlackClock "0:00:15"]
[Board "105"]

1. f4 {[%clk 0:03:00]}  Nf6 {[%clk 0:02:55]} 2. Nf3 {[%clk 0:03:00]}  c5 {[%clk 0:02:54]} 3. g3 {[%clk 0:03:01]}  d5 {[%clk 0:02:52]} 4. Bg2 {[%clk 0:03:01]}  Nc6 {[%clk 0:02:51]} 5. O-O {[%clk 0:03:01]}  g6 {[%clk 0:02:42]} 6. d3 {[%clk 0:03:02]}  Bg7 {[%clk 0:02:42]} 7. Nc3 {[%clk 0:03:02]}  O-O {[%clk 0:02:41]} 8. e4 {[%clk 0:03:02]}  dxe4 {[%clk 0:02:42]} 9. dxe4 {[%clk 0:03:02]}  Bg4 {[%clk 0:02:37]} 10. e5 {[%clk 0:02:59]}  Nd7 {[%clk 0:02:30]} 11. Be3 {[%clk 0:02:56]}  Qa5 {[%clk 0:02:20]} 12. h3 {[%clk 0:02:45]}  Bxf3 {[%clk 0:02:20]} 13. Qxf3 {[%clk 0:02:46]}  Rad8 {[%clk 0:02:14]} 14. Rad1 {[%clk 0:02:30]}  Nb6 {[%clk 0:02:10]} 15. Ne4 {[%clk 0:02:14]}  Nd4 {[%clk 0:01:55]} 16. Qf2 {[%clk 0:02:04]}  Nc4 {[%clk 0:01:44]} 17. c3 {[%clk 0:01:17]}  Nxe3 {[%clk 0:01:41]} 18. Qxe3 {[%clk 0:01:18]}  Ne6 {[%clk 0:01:36]} 19. a3 {[%clk 0:01:05]}  Qb5 {[%clk 0:01:29]} 20. Qf2 {[%clk 0:00:57]}  b6 {[%clk 0:01:23]} 21. h4 {[%clk 0:00:52]}  Qb3 {[%clk 0:01:17]} 22. Qe2 {[%clk 0:00:51]}  Nc7 {[%clk 0:01:11]} 23. h5 {[%clk 0:00:41]}  Rfe8 {[%clk 0:00:48]} 24. hxg6 {[%clk 0:00:36]}  hxg6 {[%clk 0:00:49]} 25. Ng5 {[%clk 0:00:33]}  Ne6 {[%clk 0:00:46]} 26. Ne4 {[%clk 0:00:24]}  Nc7 {[%clk 0:00:45]} 27. Bf3 {[%clk 0:00:24]}  Bh6 {[%clk 0:00:37]} 28. Nf2 {[%clk 0:00:13]}  Kg7 {[%clk 0:00:35]} 29. Ng4 {[%clk 0:00:14]}  Rh8 {[%clk 0:00:28]} 30. Be4 {[%clk 0:00:05]}  Ne6 {[%clk 0:00:26]} 31. Ne3 {[%clk 0:00:04]}  Rxd1 {[%clk 0:00:23]} 32. Rxd1 {[%clk 0:00:04]}  Bxf4 {[%clk 0:00:21]} 33. gxf4 {[%clk 0:00:03]}  Nxf4 {[%clk 0:00:22]} 34. Qf3 {[%clk 0:00:04]}  Nh3+ {[%clk 0:00:22]} 35. Kf1 {[%clk 0:00:03]}  Ng5 {[%clk 0:00:21]} 36. Qg2 {[%clk 0:00:04]}  f6 {[%clk 0:00:20]} 37. exf6+ {[%clk 0:00:04]}  exf6 {[%clk 0:00:20]} 38. Bd5 {[%clk 0:00:04]}  Qb5+ {[%clk 0:00:20]} 39. c4 {[%clk 0:00:05]}  Qe8 {[%clk 0:00:19]} 40. Re1 {[%clk 0:00:05]}  Qe5 {[%clk 0:00:19]} 41. Ng4 {[%clk 0:00:05]}  Qf5+ {[%clk 0:00:19]} 42. Kg1 {[%clk 0:00:05]}  Nh3+ {[%clk 0:00:18]} 43. Qxh3 {[%clk 0:00:04]}  Rxh3 {[%clk 0:00:19]} 44. Re7+ {[%clk 0:00:04]}  Kf8 {[%clk 0:00:17]} 45. Rf7+ {[%clk 0:00:05]}  Ke8 {[%clk 0:00:18]} 46. Nxf6+ {[%clk 0:00:05]}  Kd8 {[%clk 0:00:18]} 47. Rf8+ {[%clk 0:00:03]}  Kc7 {[%clk 0:00:17]} 48. Rf7+ {[%clk 0:00:04]}  Kd6 {[%clk 0:00:16]} 49. Ne4+ {[%clk 0:00:03]}  Ke5 {[%clk 0:00:15]} 50. Rxf5+ {[%clk 0:00:02]}  gxf5 {[%clk 0:00:16]} 51. Nc3 {[%clk 0:00:03]}  f4 {[%clk 0:00:14]} 52. Kg2 {[%clk 0:00:03]}  Rg3+ {[%clk 0:00:13]} 53. Kf2 {[%clk 0:00:03]}  a6 {[%clk 0:00:14]} 54. Na4 {[%clk 0:00:04]}  Rg6 {[%clk 0:00:14]} 55. Nc3 {[%clk 0:00:04]}  Kd4 {[%clk 0:00:13]} 56. Ne2+ {[%clk 0:00:04]}  Ke5 {[%clk 0:00:12]} 57. Kf3 {[%clk 0:00:04]}  Rf6 {[%clk 0:00:12]} 58. Nc1 {[%clk 0:00:03]}  b5 {[%clk 0:00:13]} 59. Nd3+ {[%clk 0:00:03]}  Kd4 {[%clk 0:00:14]} 60. Nxf4 {[%clk 0:00:03]}  bxc4 {[%clk 0:00:14]} 61. Bg8 {[%clk 0:00:03]}  c3 {[%clk 0:00:13]} 62. bxc3+ {[%clk 0:00:03]}  Kxc3 {[%clk 0:00:14]} 63. Ke4 {[%clk 0:00:03]}  Rf8 {[%clk 0:00:14]} 64. Be6 {[%clk 0:00:03]}  Kb2 {[%clk 0:00:13]} 65. a4 {[%clk 0:00:04]}  Ka3 {[%clk 0:00:13]} 66. Bd7 {[%clk 0:00:05]}  Kb4 {[%clk 0:00:13]} 67. Nd5+ {[%clk 0:00:05]}  Ka5 {[%clk 0:00:14]} 68. Nc3 {[%clk 0:00:04]}  Rd8 {[%clk 0:00:13]} 69. Bc6 {[%clk 0:00:05]}  Kb4 {[%clk 0:00:13]} 70. Nd5+ {[%clk 0:00:05]}  Kc4 {[%clk 0:00:13]} 71. Ke5 {[%clk 0:00:05]}  Kb3 {[%clk 0:00:13]} 72. a5 {[%clk 0:00:03]}  c4 {[%clk 0:00:13]} 73. Bb7 {[%clk 0:00:03]}  c3 {[%clk 0:00:13]} 74. Nxc3 {[%clk 0:00:04]}  Kxc3 {[%clk 0:00:14]} 75. Bxa6 {[%clk 0:00:05]}  Kb4 {[%clk 0:00:14]} 76. Bb7 {[%clk 0:00:04]}  Kxa5 {[%clk 0:00:15]} 77. Bc6 {[%clk 0:00:05]}  Kb6 {[%clk 0:00:16]} 78. Bf3 {[%clk 0:00:05]}  Kc5 {[%clk 0:00:16]} 79. Kf6 {[%clk 0:00:05]}  Rd3 {[%clk 0:00:16]} 80. Bh5 {[%clk 0:00:06]}  Kd6 {[%clk 0:00:15]} 81. Kg7 {[%clk 0:00:06]}  Rg3+ {[%clk 0:00:15]} 82. Kf8 {[%clk 0:00:03]}  Ke6 {[%clk 0:00:14]} 83. Bf7+ {[%clk 0:00:03]}  Kf6 {[%clk 0:00:15]} 84. Bd5 {[%clk 0:00:04]}  Rd3 {[%clk 0:00:14]} 85. Bf7 {[%clk 0:00:02]}  Rd8+ {[%clk 0:00:14]} 86. Be8 {[%clk 0:00:00]}  Rb8 {[%clk 0:00:15]} 0-1


[Site "https://www.chess.com"]

[Event "Titled Tuesday Blitz August 1 Early 2023"]
[White "Dinu, Dumitru-Daniel"]
[Black "Timerkhanov, Alexander"]
[WhiteFideId "1208403"]
[BlackFideId "24177938"]
[WhiteElo "2466"]
[BlackElo "2637"]
[Result "1/2-1/2"]
[Round "6"]
[TimeControl "180+1"]
[Date "2023.08.01"]
[WhiteClock "0:00:04"]
[BlackClock "0:00:22"]
[Board "106"]

1. d4 {[%clk 0:03:00]}  d5 {[%clk 0:03:00]} 2. c4 {[%clk 0:03:00]}  dxc4 {[%clk 0:03:00]} 3. Nf3 {[%clk 0:02:59]}  Nf6 {[%clk 0:02:57]} 4. e3 {[%clk 0:03:00]}  Be6 {[%clk 0:02:57]} 5. Nc3 {[%clk 0:02:56]}  c6 {[%clk 0:02:57]} 6. a4 {[%clk 0:02:56]}  a5 {[%clk 0:02:50]} 7. Ne5 {[%clk 0:02:56]}  Na6 {[%clk 0:02:50]} 8. Bxc4 {[%clk 0:02:54]}  Bxc4 {[%clk 0:02:50]} 9. Nxc4 {[%clk 0:02:55]}  Nb4 {[%clk 0:02:50]} 10. O-O {[%clk 0:02:53]}  e6 {[%clk 0:02:51]} 11. e4 {[%clk 0:02:46]}  Be7 {[%clk 0:02:51]} 12. e5 {[%clk 0:02:40]}  Nfd5 {[%clk 0:02:51]} 13. Ne4 {[%clk 0:02:40]}  O-O {[%clk 0:02:49]} 14. Ncd6 {[%clk 0:02:39]}  Bxd6 {[%clk 0:02:48]} 15. Nxd6 {[%clk 0:02:39]}  Qe7 {[%clk 0:02:48]} 16. Bd2 {[%clk 0:02:33]}  f6 {[%clk 0:02:47]} 17. Bxb4 {[%clk 0:02:30]}  axb4 {[%clk 0:02:47]} 18. Qb3 {[%clk 0:02:22]}  fxe5 {[%clk 0:02:47]} 19. dxe5 {[%clk 0:02:22]}  Rab8 {[%clk 0:02:24]} 20. Qh3 {[%clk 0:02:06]}  Nf4 {[%clk 0:02:23]} 21. Qg4 {[%clk 0:01:59]}  h5 {[%clk 0:02:22]} 22. Qf3 {[%clk 0:01:48]}  Qg5 {[%clk 0:02:22]} 23. Nc4 {[%clk 0:01:40]}  h4 {[%clk 0:02:15]} 24. h3 {[%clk 0:01:39]}  Rbd8 {[%clk 0:02:06]} 25. Rad1 {[%clk 0:01:34]}  Rd5 {[%clk 0:01:59]} 26. Ne3 {[%clk 0:01:26]}  Rxe5 {[%clk 0:01:26]} 27. Rd7 {[%clk 0:01:25]}  Nd5 {[%clk 0:01:19]} 28. Qg4 {[%clk 0:01:12]}  Qxg4 {[%clk 0:01:00]} 29. Nxg4 {[%clk 0:01:12]}  Re2 {[%clk 0:01:00]} 30. Rxb7 {[%clk 0:01:05]}  Rxb2 {[%clk 0:01:01]} 31. Rc1 {[%clk 0:01:03]}  Nc3 {[%clk 0:00:58]} 32. Re1 {[%clk 0:00:57]}  Ne2+ {[%clk 0:00:35]} 33. Kf1 {[%clk 0:00:53]}  Nd4 {[%clk 0:00:32]} 34. f3 {[%clk 0:00:39]}  c5 {[%clk 0:00:31]} 35. Re5 {[%clk 0:00:32]}  Rc2 {[%clk 0:00:29]} 36. Rg5 {[%clk 0:00:22]}  Nf5 {[%clk 0:00:24]} 37. Nh6+ {[%clk 0:00:11]}  Kh7 {[%clk 0:00:23]} 38. Nxf5 {[%clk 0:00:10]}  Rxf5 {[%clk 0:00:22]} 39. Rbxg7+ {[%clk 0:00:08]}  Kh6 {[%clk 0:00:21]} 40. R7g6+ {[%clk 0:00:07]}  Kh7 {[%clk 0:00:22]} 41. Rg7+ {[%clk 0:00:08]}  Kh6 {[%clk 0:00:21]} 42. R7g6+ {[%clk 0:00:04]}  Kh7 {[%clk 0:00:22]} 43. Rg7+ {[%clk 0:00:04]} 1/2-1/2


[Site "https://www.chess.com"]